[Event "GER-ch Youth-ODJM 2022 A"]
[Site "Willingen"]
[Date "2022.06.11"]
[Round "9.5"]
[White "Gauer, Liam"]
[Black "Ginschel, Leonhard"]
[Result "0-1"]
[ECO "D00"]
[WhiteElo "1028"]
[BlackElo "1236"]
[Annotator "NA RC COMBH"]
[PlyCount "94"]
[EventDate "2022.06.05"]
[EventType "swiss"]
[EventRounds "9"]
[EventCountry "GER"]
[SourceTitle "playchess.com"]
[Source "ChessBase"]
[SourceQuality "1"]
[TimeControl "40/4500+30:900+30"]

1. d4 {[%emt 0:00:00]} d5 {[%emt 0:00:00]} 2. Bf4 {[%emt 0:00:00]} Nf6 {[%emt 0:00:00]} 3. Nc3 {[%emt 0:00:00]} e6 {[%emt 0:00:00]} 4. e3 {[%emt 0:00:00]} c5 {[%emt 0:00:00]} 5. dxc5 {[%emt 0:00:00]} Bxc5 {[%emt 0:00:00]} 6. Nb5 {[%emt 0:00:00]} Na6 {[%emt 0:00:00]} 7. Nf3 {[%emt 0:00:00]} O-O {[%emt 0:00:00]} 8. Be5 {[%emt 0:00:00]} Bd7 {[%emt 0:00:00]} 9. Nd6 {[%emt 0:00:00]} Bc6 {[%emt 0:00:00]} 10. Nb5 {[%emt 0:00:00]} Bxb5 {[%emt 0:02:31]} 11. Bxf6 {[%emt 0:01:55]} gxf6 {[%emt 0:00:38]} 12. Bd3 {[%emt 0:03:17]} Bxd3 {[%emt 0:01:56]} 13. Qxd3 {[%emt 0:00:37]} Nb4 {[%emt 0:02:40]} 14. Qc3 {[%emt 0:00:33]} Be7 {[%emt 0:05:09]} 15. Qd2 {[%emt 0:01:43]} Rc8 {[%emt 0:02:07]} 16. c3 {[%emt 0:01:31]} Nc6 {[%emt 0:00:42]} 17. O-O {[%emt 0:01:31]} Kh8 {[%emt 0:02:33]} 18. Nd4 {[%emt 0:01:39]} Nxd4 {[%emt 0:01:19]} 19. Qxd4 {[%emt 0:00:35]} a6 {[%emt 0:01:12]} 20. g3 {[%emt 0:00:42]} Rg8 {[%emt 0:01:32]} 21. Rfd1 {[%emt 0:02:58]} Qd6 {[%emt 0:01:31]} 22. Kf1 {[%emt 0:05:42]} Qc5 {[%emt 0:02:18]} 23. Qxc5 {[%emt 0:03:38]} Rxc5 {[%emt 0:00:28]} 24. e4 {[%emt 0:01:32]} Rd8 {[%emt 0:01:31]} 25. Ke2 {[%emt 0:03:40]} Kg7 {[%emt 0:00:52]} 26. Rd3 {[%emt 0:00:26]} dxe4 {[%emt 0:02:54]} 27. Rxd8 {[%emt 0:00:10]} Bxd8 {[%emt 0:00:04]} 28. Rd1 {[%emt 0:00:09]} Rd5 {[%emt 0:00:05]} 29. Rxd5 {[%emt 0:00:21]} exd5 {[%emt 0:00:06]} 30. f3 {[%emt 0:00:18]} f5 {[%emt 0:00:38]} 31. b4 {[%emt 0:00:17]} Bb6 {[%emt 0:00:29]} 32. a4 {[%emt 0:00:28]} Kf6 {[%emt 0:00:15]} 33. h3 {[%emt 0:01:12]} e3 34. f4 Ke6 {[%emt 0:00:43]} 35. g4 {[%emt 0:01:11]} fxg4 {[%emt 0:00:10]} 36. hxg4 {[%emt 0:00:04]} f5 {[%emt 0:00:06]} 37. g5 {[%emt 0:00:11]} Kd6 {[%emt 0:00:25]} 38. Kd3 {[%emt 0:01:28]} d4 {[%emt 0:00:33]} 39. cxd4 {[%emt 0:00:32]} Kd5 {[%emt 0:00:07]} 40. Kxe3 {[%emt 0:00:09]} Bxd4+ {[%emt 0:00:07]} 41. Kd3 {[%emt 0:15:19]} Bf2 {[%emt 0:15:21]} 42. Ke2 {[%emt 0:00:21]} Bg3 {[%emt 0:00:18]} 43. Kf3 {[%emt 0:00:07]} Be1 {[%emt 0:00:05]} 44. b5 {[%emt 0:00:14]} axb5 {[%emt 0:00:08]} 45. axb5 {[%emt 0:00:07]} Kd4 {[%emt 0:00:36]} 46. Ke2 {[%emt 0:00:11]} Bb4 {[%emt 0:00:10]} 47. Kf3 {[%emt 0:00:09]} Bd6 {[%emt 0:00:12]} 0-1

[Event "GER-ch Youth-ODJM 2022 A"]
[Site "Willingen"]
[Date "2022.06.11"]
[Round "9.6"]
[White "Löffelholz, Simon"]
[Black "Hapke, Marvin"]
[Result "1/2-1/2"]
[ECO "B01"]
[WhiteElo "1044"]
[BlackElo "1262"]
[Annotator "NA RC COMBH"]
[PlyCount "41"]
[EventDate "2022.06.05"]
[EventType "swiss"]
[EventRounds "9"]
[EventCountry "GER"]
[SourceTitle "playchess.com"]
[Source "ChessBase"]
[SourceQuality "1"]
[TimeControl "40/4500+30:900+30"]

1. e4 {[%emt 0:00:00]} d5 {[%emt 0:00:00]} 2. exd5 {[%emt 0:00:00]} Nf6 {[%emt 0:00:00]} 3. d4 {[%emt 0:00:00]} Nxd5 {[%emt 0:00:00]} 4. c4 {[%emt 0:00:00]} Nf6 {[%emt 0:00:00]} 5. Nf3 {[%emt 0:00:00]} Bf5 {[%emt 0:00:00]} 6. Nc3 {[%emt 0:00:00]} c6 {[%emt 0:00:00]} 7. Be3 {[%emt 0:00:00]} e6 {[%emt 0:00:00]} 8. Bd3 {[%emt 0:00:00]} Bxd3 {[%emt 0:00:00]} 9. Qxd3 {[%emt 0:00:00]} Nbd7 {[%emt 0:00:00]} 10. Rb1 {[%emt 0:00:17]} Qc7 {[%emt 0:07:32]} 11. b4 {[%emt 0:04:27]} Rd8 {[%emt 0:03:49]} 12. c5 {[%emt 0:02:19]} e5 {[%emt 0:02:20]} 13. O-O {[%emt 0:04:46]} Be7 {[%emt 0:00:29]} 14. Qc4 {[%emt 0:04:36]} b6 {[%emt 0:03:07]} 15. Ng5 {[%emt 0:03:46]} O-O {[%emt 0:03:05]} 16. f4 {[%emt 0:03:42]} e4 {[%emt 0:04:56]} 17. Ncxe4 {[%emt 0:04:32]} Nd5 {[%emt 0:01:21]} 18. Qd3 {[%emt 0:07:40]} Rfe8 {[%emt 0:03:36]} 19. Nd6 {[%emt 0:08:26]} Bxg5 {[%emt 0:00:06]} 20. Nxe8 {[%emt 0:09:49]} Rxe8 {[%emt 0:00:47]} 21. Rbe1 {[%emt 0:03:49]} 1/2-1/2

[Event "GER-ch Youth-ODJM 2022 A"]
[Site "Willingen"]
[Date "2022.06.11"]
[Round "9.7"]
[White "Aguike, Chidera"]
[Black "Menne, Lukas"]
[Result "1/2-1/2"]
[ECO "B01"]
[WhiteElo "1266"]
[BlackElo "1150"]
[Annotator "NA RC COMBH"]
[PlyCount "96"]
[EventDate "2022.06.05"]
[EventType "swiss"]
[EventRounds "9"]
[EventCountry "GER"]
[SourceTitle "playchess.com"]
[Source "ChessBase"]
[SourceQuality "1"]
[TimeControl "40/4500+30:900+30"]

1. e4 {[%emt 0:00:00]} d5 {[%emt 0:00:00]} 2. exd5 {[%emt 0:00:00]} Qxd5 {[%emt 0:00:00]} 3. Nc3 {[%emt 0:00:00]} Qa5 {[%emt 0:00:00]} 4. Nf3 {[%emt 0:00:00]} c6 {[%emt 0:00:00]} 5. Be2 {[%emt 0:00:00]} Nf6 {[%emt 0:00:00]} 6. O-O {[%emt 0:00:00]} Bf5 {[%emt 0:00:00]} 7. d3 {[%emt 0:00:00]} e6 {[%emt 0:00:00]} 8. a3 {[%emt 0:00:00]} Nbd7 {[%emt 0:00:00]} 9. Bf4 {[%emt 0:00:00]} Be7 {[%emt 0:00:00]} 10. Nd2 {[%emt 0:00:00]} Nd5 {[%emt 0:00:14]} 11. Nxd5 {[%emt 0:00:00]} cxd5 {[%emt 0:01:32]} 12. Nb3 {[%emt 0:00:00]} Qd8 {[%emt 0:02:13]} 13. d4 {[%emt 0:00:00]} O-O {[%emt 0:02:02]} 14. Bd3 {[%emt 0:00:00]} Bxd3 {[%emt 0:01:22]} 15. Qxd3 {[%emt 0:00:00]} Nf6 {[%emt 0:00:58]} 16. Qb5 {[%emt 0:00:00]} Qd7 {[%emt 0:03:04]} 17. Qxd7 {[%emt 0:00:00]} Nxd7 {[%emt 0:00:09]} 18. Rfc1 {[%emt 0:00:00]} b6 {[%emt 0:01:48]} 19. c4 {[%emt 0:00:00]} Nf6 {[%emt 0:03:39]} 20. Bg5 {[%emt 0:00:00]} h6 {[%emt 0:01:06]} 21. Bh4 {[%emt 0:00:00]} g5 {[%emt 0:00:18]} 22. Bg3 {[%emt 0:00:00]} Ne4 {[%emt 0:13:00]} 23. cxd5 {[%emt 0:00:39]} Nxg3 {[%emt 0:02:35]} 24. hxg3 {[%emt 0:00:16]} exd5 {[%emt 0:00:43]} 25. Rc7 {[%emt 0:00:31]} Bf6 {[%emt 0:03:46]} 26. Rac1 {[%emt 0:00:33]} a5 {[%emt 0:00:46]} 27. a4 {[%emt 0:00:46]} b5 {[%emt 0:01:21]} 28. axb5 {[%emt 0:06:12]} a4 {[%emt 0:00:59]} 29. Nc5 {[%emt 0:01:34]} Bxd4 {[%emt 0:02:07]} 30. b4 {[%emt 0:03:37]} a3 {[%emt 0:01:29]} 31. Nb3 {[%emt 0:02:59]} a2 {[%emt 0:01:08]} 32. Na1 {[%emt 0:01:15]} Rfe8 {[%emt 0:05:18]} 33. Rd7 {[%emt 0:02:40]} Bc3 {[%emt 0:18:25]} 34. Kh2 {[%emt 0:02:06]} Re1 {[%emt 0:05:30]} 35. Rxe1 {[%emt 0:00:59]} Bxe1 {[%emt 0:00:11]} 36. Rxd5 {[%emt 0:00:05]} Rc8 {[%emt 0:03:16]} 37. Rd1 {[%emt 0:01:36]} Bxb4 {[%emt 0:00:52]} 38. Nb3 {[%emt 0:03:45]} Rc2 {[%emt 0:01:44]} 39. b6 {[%emt 0:01:10]} Rc8 {[%emt 0:03:57]} 40. Ra1 {[%emt 0:00:46]} Rb8 {[%emt 0:00:37]} 41. Rxa2 {[%emt 0:15:13]} Rxb6 {[%emt 0:15:15]} 42. Nd4 {[%emt 0:00:51]} Bc5 {[%emt 0:02:13]} 43. Nf5 {[%emt 0:00:35]} Rf6 {[%emt 0:00:56]} 44. Ne3 {[%emt 0:00:28]} Bxe3 {[%emt 0:01:11]} 45. fxe3 {[%emt 0:00:06]} Re6 {[%emt 0:00:34]} 46. Re2 {[%emt 0:00:14]} Kg7 {[%emt 0:00:10]} 47. g4 {[%emt 0:00:11]} Re5 {[%emt 0:00:23]} 48. Kg3 {[%emt 0:00:10]} f5 {[%emt 0:00:29]} 1/2-1/2

[Event "GER-ch Youth-ODJM 2022 A"]
[Site "Willingen"]
[Date "2022.06.11"]
[Round "9.8"]
[White "Schöne, Finn"]
[Black "Lau, Lars"]
[Result "1/2-1/2"]
[ECO "A43"]
[WhiteElo "1110"]
[BlackElo "929"]
[Annotator "NA RC COMBH"]
[PlyCount "152"]
[EventDate "2022.06.05"]
[EventType "swiss"]
[EventRounds "9"]
[EventCountry "GER"]
[SourceTitle "playchess.com"]
[Source "ChessBase"]
[SourceQuality "1"]
[TimeControl "40/4500+30:900+30"]

1. d4 {[%emt 0:00:00]} c5 {[%emt 0:00:00]} 2. d5 {[%emt 0:00:00]} Nf6 {[%emt 0:00:00]} 3. Nc3 {[%emt 0:00:00]} e6 {[%emt 0:00:00]} 4. e4 {[%emt 0:00:00]} a6 {[%emt 0:00:00]} 5. Nf3 {[%emt 0:00:00]} d6 {[%emt 0:00:00]} 6. Bg5 {[%emt 0:13:47]} Nbd7 {[%emt 0:00:00]} 7. Bc4 {[%emt 0:11:52]} e5 {[%emt 0:00:00]} 8. Qd3 {[%emt 0:11:14]} Be7 {[%emt 0:00:00]} 9. O-O-O {[%emt 0:05:52]} b5 {[%emt 0:00:00]} 10. Bxb5 {[%emt 0:01:26]} axb5 {[%emt 0:00:00]} 11. Nxb5 {[%emt 0:00:04]} Ba6 {[%emt 0:00:00]} 12. Bxf6 {[%emt 0:02:03]} Bxf6 {[%emt 0:00:00]} 13. Nxd6+ {[%emt 0:00:38]} Ke7 {[%emt 0:00:00]} 14. Nf5+ {[%emt 0:00:03]} Kf8 {[%emt 0:00:00]} 15. Qc3 {[%emt 0:00:56]} g6 {[%emt 0:00:00]} 16. Nd6 {[%emt 0:02:03]} Kg7 {[%emt 0:00:00]} 17. g3 {[%emt 0:04:34]} Be2 {[%emt 0:00:00]} 18. Rde1 {[%emt 0:00:21]} Bxf3 {[%emt 0:00:00]} 19. Qxf3 {[%emt 0:00:08]} Qb8 {[%emt 0:00:00]} 20. Nc4 {[%emt 0:01:10]} Rxa2 {[%emt 0:00:00]} 21. Qc3 {[%emt 0:00:49]} Bg5+ {[%emt 0:00:00]} 22. Kb1 {[%emt 0:01:33]} Qa7 {[%emt 0:00:00]} 23. Na3 {[%emt 0:00:12]} Rxb2+ {[%emt 0:00:00]} 24. Kxb2 {[%emt 0:00:22]} Rb8+ {[%emt 0:00:00]} 25. Ka2 {[%emt 0:00:20]} Be7 {[%emt 0:00:05]} 26. Rb1 {[%emt 0:02:23]} Ra8 {[%emt 0:00:31]} 27. Rhe1 {[%emt 0:00:49]} c4 {[%emt 0:00:19]} 28. Re3 {[%emt 0:00:02]} Bc5 {[%emt 0:00:19]} 29. Rf3 {[%emt 0:00:52]} Bd4 {[%emt 0:00:14]} 30. Qxc4 {[%emt 0:00:24]} Nb6 {[%emt 0:00:51]} 31. Qb3 {[%emt 0:01:21]} Na4 {[%emt 0:00:08]} 32. d6 {[%emt 0:02:00]} Nc3+ {[%emt 0:01:09]} 33. Rxc3 {[%emt 0:00:04]} Bxc3 {[%emt 0:00:10]} 34. Qxc3 {[%emt 0:00:03]} Kg8 {[%emt 0:00:19]} 35. Kb2 {[%emt 0:01:43]} Rb8+ {[%emt 0:01:31]} 36. Kc1 {[%emt 0:00:12]} Rd8 {[%emt 0:00:10]} 37. Nb5 {[%emt 0:00:40]} Qxf2 {[%emt 0:00:44]} 38. Qc7 {[%emt 0:00:36]} Qf1+ {[%emt 0:00:07]} 39. Kb2 {[%emt 0:00:03]} Qxb5+ {[%emt 0:00:04]} 40. Kc1 {[%emt 0:00:13]} Qf1+ {[%emt 0:00:35]} 41. Kd2 {[%emt 0:15:57]} Qf2+ {[%emt 0:15:05]} 42. Kc3 {[%emt 0:00:13]} Qd4+ {[%emt 0:00:07]} 43. Kb3 {[%emt 0:00:11]} Qe3+ {[%emt 0:00:10]} 44. Kb2 {[%emt 0:00:25]} Qd4+ {[%emt 0:00:12]} 45. Kc1 {[%emt 0:00:38]} Qg1+ {[%emt 0:00:06]} 46. Kb2 {[%emt 0:00:16]} Qd4+ {[%emt 0:00:05]} 47. c3 {[%emt 0:01:40]} Qd2+ {[%emt 0:00:11]} 48. Kb3 {[%emt 0:00:07]} Qxd6 {[%emt 0:00:35]} 49. Qxd6 {[%emt 0:00:01]} Rxd6 {[%emt 0:00:03]} 50. c4 {[%emt 0:00:33]} Rb6+ {[%emt 0:00:13]} 51. Kc2 {[%emt 0:00:08]} Rc6 {[%emt 0:00:05]} 52. Rb8+ {[%emt 0:00:18]} Kg7 {[%emt 0:00:05]} 53. Kc3 {[%emt 0:00:10]} f5 {[%emt 0:00:14]} 54. exf5 {[%emt 0:00:12]} gxf5 {[%emt 0:00:07]} 55. Rb5 {[%emt 0:00:05]} Kf6 {[%emt 0:00:05]} 56. c5 {[%emt 0:00:34]} f4 {[%emt 0:00:10]} 57. gxf4 {[%emt 0:00:15]} exf4 {[%emt 0:00:03]} 58. Kd4 {[%emt 0:00:04]} Re6 {[%emt 0:01:31]} 59. Rb6 {[%emt 0:00:07]} f3 {[%emt 0:01:43]} 60. Rxe6+ {[%emt 0:00:03]} Kxe6 {[%emt 0:00:17]} 61. Ke3 {[%emt 0:00:02]} Kd5 62. Kxf3 Kxc5 {[%emt 0:01:37]} 63. Kg4 {[%emt 0:00:36]} Kd6 {[%emt 0:00:03]} 64. Kg5 {[%emt 0:00:06]} Ke5 {[%emt 0:00:19]} 65. h4 {[%emt 0:00:25]} Ke6 {[%emt 0:00:18]} 66. Kh6 {[%emt 0:00:24]} Kf6 {[%emt 0:00:17]} 67. Kxh7 {[%emt 0:00:28]} Kf7 {[%emt 0:00:07]} 68. h5 {[%emt 0:00:02]} Kf8 {[%emt 0:00:11]} 69. Kg6 {[%emt 0:00:23]} Kg8 {[%emt 0:00:19]} 70. Kg5 {[%emt 0:00:34]} Kh7 {[%emt 0:00:08]} 71. Kg4 {[%emt 0:01:00]} Kh6 {[%emt 0:00:07]} 72. Kh4 {[%emt 0:00:04]} Kh7 {[%emt 0:00:01]} 73. Kg5 {[%emt 0:00:01]} Kg7 {[%emt 0:00:23]} 74. h6+ {[%emt 0:00:01]} Kh7 {[%emt 0:00:08]} 75. Kh5 {[%emt 0:00:03]} Kg8 {[%emt 0:00:13]} 76. Kg6 {[%emt 0:00:14]} Kh8 {[%emt 0:00:10]} 1/2-1/2

[Event "GER-ch Youth-ODJM 2022 A"]
[Site "Willingen"]
[Date "2022.06.11"]
[Round "9.9"]
[White "Nguyen, Phuc Nhat"]
[Black "Köhler, Lukas"]
[Result "1/2-1/2"]
[ECO "B38"]
[WhiteElo "1809"]
[BlackElo "2099"]
[Annotator "TA"]
[PlyCount "43"]
[EventDate "2022.06.05"]
[EventType "swiss"]
[EventRounds "9"]
[EventCountry "GER"]
[SourceTitle "playchess.com"]
[Source "ChessBase"]
[SourceQuality "1"]
[TimeControl "40/4500+30:900+30"]

{[%evp 19,43,46,85,81,85,83,85,78,93,94,93,80,81,77,104,79,91,85,115,66,102,89,78,83,96,87]} 1. e4 {[%emt 0:00:00]} c5 {[%emt 0:00:00]} 2. Nf3 {[%emt 0:00:00]} g6 {[%emt 0:00:00]} 3. d4 {[%emt 0:00:00]} cxd4 {[%emt 0:00:00]} 4. Nxd4 {[%emt 0:00:00]} Bg7 {[%emt 0:00:00]} 5. c4 {[%emt 0:00:00]} Nc6 {[%emt 0:00:00]} 6. Be3 {[%emt 0:00:00]} Nf6 {[%emt 0:00:00]} 7. Nc3 {[%emt 0:00:00]} d6 {[%emt 0:00:00]} 8. Be2 {[%emt 0:00:00]} O-O {[%emt 0:00:00]} 9. Nc2 {[%emt 0:00:00]} a5 {[%emt 0:03:34]} 10. O-O {[%emt 0:01:59]} Bd7 {[%emt 0:14:36]} 11. f3 {[%emt 0:09:16] B38: Sicilian: Maroczy Bind with 5...Bg7 and 7...0-0.} Nb4 {[%emt 0:04:33][%cal Bc6b4,Bb4a6,Ba6c5][%mdl 32] was the old line (11...a4).} 12. Nd4 {[%emt 0:04:08]} Na6 {[%emt 0:06:05]} 13. Qd2 {[%emt 0:04:16]} Nc5 {[%emt 0:08:22]} 14. b3 {[%emt 0:07:10] [#]} Ne8 $146 {[%emt 0:07:14]} (14... Qb8 15. Rab1 Rc8 16. Rfd1 h5 17. Ndb5 Kh7 18. Kh1 Be8 19. Bg5 Ne6 20. Be3 Nc5 21. Bg5 Ne6 22. Be3 Nc5 23. Bg5) ({Predecessor:} 14... Qb8 15. Rab1 Rc8 16. Rfd1 h5 17. Ndb5 Kh7 18. Kh1 Be8 19. Bg5 Ne6 20. Be3 Nc5 21. Bg5 Ne6 22. Be3 Nc5 23. Bg5 {½-½ (21) Mahia,G (2375)-Rodriguez Vila,A (2427) Villa Martelli 2014}) 15. Rac1 {[%emt 0:02:59] White is more active.} Nc7 {[%emt 0:01:41]} 16. Rfd1 {[%emt 0:00:55]} Kh8 {[%emt 0:08:42]} 17. Nc2 {[%emt 0:09:02]} N7a6 {[%emt 0:05:29]} 18. Nd5 {[%emt 0:02:47]} Bc6 {[%emt 0:01:21]} 19. Bd4 {[%emt 0:05:28]} ({White should try} 19. Nd4 $16) 19... Bxd5 {[%emt 0:06:47]} 20. Bxg7+ {[%emt 0:00:33] White is better.} (20. cxd5 Bxd4+ 21. Nxd4 (21. Qxd4+ Kg8)) 20... Kxg7 {[%emt 0:00:17]} 21. cxd5 {[%emt 0:00:23]} Nc7 {[%emt 0:04:40]} 22. Ne3 {[%emt 0:04:13] Weighted Error Value: White=0.10 (very precise) /Black=0.16 (very precise)} ({Resist} 22. b4 axb4 23. Nxb4 Kg8 $11) 1/2-1/2

[Event "GER-ch Youth-ODJM 2022 A"]
[Site "Willingen"]
[Date "2022.06.11"]
[Round "9.10"]
[White "Gerlach, Felix"]
[Black "Irkilmez, Yakub"]
[Result "1/2-1/2"]
[ECO "D00"]
[WhiteElo "2072"]
[BlackElo "2169"]
[Annotator "TA"]
[PlyCount "42"]
[EventDate "2022.06.05"]
[EventType "swiss"]
[EventRounds "9"]
[EventCountry "GER"]
[SourceTitle "playchess.com"]
[Source "ChessBase"]
[SourceQuality "1"]
[TimeControl "40/4500+30:900+30"]

{[%evp 19,42,10,11,16,10,11,11,9,37,33,31,0,0,0,6,0,0,0,0,-6,0,-18,0,-16,0]} 1. d4 {[%emt 0:00:00]} d5 {[%emt 0:14:12]} 2. Bf4 {[%emt 0:00:00]} Bf5 {[%emt 0:00:12]} 3. c4 {[%emt 0:00:00]} e6 {[%emt 0:01:08]} 4. Nc3 {[%emt 0:00:00]} c6 {[%emt 0:04:15]} 5. e3 {[%emt 0:00:00]} Nf6 {[%emt 0:03:31]} 6. Nf3 {[%emt 0:00:00]} Bd6 {[%emt 0:00:19]} 7. Bxd6 {[%emt 0:00:00]} Qxd6 {[%emt 0:00:10]} 8. Bd3 {[%emt 0:00:00]} Bxd3 {[%emt 0:01:02]} 9. Qxd3 {[%emt 0:00:00]} O-O {[%emt 0:00:49]} 10. O-O {[%emt 0:00:00]} Nbd7 {[%emt 0:04:21]} 11. h3 {[%emt 0:00:32] D02: 1 d4 d5 2 Nf3 sidelines, including 2...Nf6 3 g3 and 2...Nf6 3 Bf4.} Rfe8 {[%emt 0:01:46]} 12. Rfd1 {[%emt 0:07:54]} Rad8 {[%emt 0:06:57] [#]} 13. Rac1 $146 {[%emt 0:02:37]} ({Predecessor:} 13. e4 dxc4 14. Qxc4 Nb6 15. Qe2 Qf8 16. e5 Nfd5 17. Ne4 Re7 18. Re1 Rc7 19. Rad1 {1-0 (31) Orlov,P (2313)-Kolev,V (2013) Plovdiv 2006}) 13... dxc4 {[%emt 0:03:21]} 14. Qxc4 {[%emt 0:01:40]} Nd5 {[%emt 0:05:52]} 15. Nxd5 {[%emt 0:05:15]} exd5 {[%emt 0:01:09] The position is equal.} 16. Qb3 {[%emt 0:00:10]} Nb6 {[%emt 0:01:18]} 17. Ne5 {[%emt 0:03:11]} Qe7 {[%emt 0:01:20]} 18. Nd3 {[%emt 0:00:11]} Nc4 {[%emt 0:01:33]} 19. Qc2 {[%emt 0:00:19]} h6 {[%emt 0:00:35]} 20. b4 {[%emt 0:00:22]} a6 {[%emt 0:00:52]} 21. a4 {[%emt 0:00:17]} Nd6 {[%emt 0:00:31] Weighted Error Value: White=0.07 (flawless) /Black=0.05 (flawless)} 1/2-1/2

[Event "GER-ch Youth-ODJM 2022 A"]
[Site "Willingen"]
[Date "2022.06.11"]
[Round "9.11"]
[White "Metzinger, Hannes"]
[Black "Brunner, Tobias"]
[Result "1-0"]
[ECO "B01"]
[WhiteElo "1845"]
[BlackElo "2007"]
[Annotator "TA"]
[PlyCount "85"]
[EventDate "2022.06.05"]
[EventType "swiss"]
[EventRounds "9"]
[EventCountry "GER"]
[SourceTitle "playchess.com"]
[Source "ChessBase"]
[SourceQuality "1"]
[TimeControl "40/4500+30:900+30"]

{[%evp 10,85,37,47,79,77,79,73,73,75,80,53,54,48,53,29,47,54,51,50,49,40,42,39,22,35,150,139,209,170,160,95,219,193,207,215,215,193,216,209,237,233,258,244,312,280,626,626,602,600,833,718,668,719,695,686,785,785,785,774,778,777,762,762,745,745,745,745,730,730,747,747,763,698,891,870,1060,970]} 1. e4 {[%emt 0:00:00]} d5 {[%emt 0:00:00]} 2. exd5 {[%emt 0:00:00]} Qxd5 {[%emt 0:00:00]} 3. Nc3 {[%emt 0:00:00]} Qd6 {[%emt 0:00:00]} 4. d4 {[%emt 0:00:00]} Nf6 {[%emt 0:00:00]} 5. Nf3 {[%emt 0:00:00]} Bg4 {[%emt 0:00:00]} 6. h3 {[%emt 0:00:00]} Bxf3 {[%emt 0:00:00] B01: Scandinavian Defence.} 7. Qxf3 {[%emt 0:00:00]} ({But not} 7. gxf3 Qb6 $11) 7... c6 {[%emt 0:00:00]} 8. Be3 {[%emt 0:00:00]} e6 {[%emt 0:00:00] White is better.} 9. O-O-O {[%emt 0:00:29]} Qc7 {[%emt 0:00:00]} 10. Bc4 {[%emt 0:04:13]} Nbd7 {[%emt 0:00:00]} 11. g4 {[%emt 0:10:59]} Nb6 {[%emt 0:00:22]} 12. Bb3 {[%emt 0:00:47]} Nbd5 {[%emt 0:00:10] [#]} 13. Nxd5 $146 {[%emt 0:01:49]} ({Predecessor:} 13. Ne4 Nxe4 14. Qxe4 Nxe3 15. fxe3 O-O-O 16. Rhf1 Bd6 17. Rxf7 Qxf7 18. Bxe6+ Qxe6 19. Qxe6+ {1-0 (41) Risteski,E (2363)-Samarth,J (1664) Chess.com INT 2022}) 13... Nxd5 {[%emt 0:04:09]} 14. Bd2 {[%emt 0:00:07][%cal Be3d2,Bd2f4,Bf4e5][%mdl 32]} a5 {[%emt 0:06:16]} 15. Rhe1 {[%emt 0:04:34]} Be7 {[%emt 0:01:13]} 16. c4 {[%emt 0:00:14]} Nb4 {[%emt 0:02:11]} 17. a3 {[%emt 0:01:51]} Na6 {[%emt 0:02:56]} (17... a4 $14) 18. Bf4 {[%emt 0:01:21]} Qc8 {[%emt 0:06:23]} (18... Bd6 $16) 19. Be5 {[%emt 0:01:13]} O-O {[%emt 0:00:16]} 20. Qd3 {[%emt 0:01:06] 0x0.00207a2ecc6edp-1022s more active pieces. The black rooks are badly placed.} (20. Bc2) (20. Bc2 $142) 20... Qd8 {[%emt 0:07:28] Black cannot hold the game after this.} (20... b5 $16) 21. h4 $40 {[%emt 0:02:41][%cal Bh3h4,Bh4h5][%mdl 160] White wants a kill.} Bf6 {[%emt 0:02:12]} 22. Bc2 {[%emt 0:01:32][%csl Gc2][%cal Rd3h7]} g6 {[%emt 0:00:09]} 23. h5 {[%emt 0:00:08]} Bxe5 {[%emt 0:00:09]} 24. Rxe5 {[%emt 0:00:05]} (24. dxe5 Qxd3 25. Rxd3 Nc5 $14) 24... Qf6 {[%emt 0:00:44]} 25. Qe3 {[%emt 0:02:20]} ({Less strong is} 25. Rxa5 Qxf2 26. Re5 (26. hxg6 fxg6 27. Qb3 Rab8 $14) 26... Nc7 $14) 25... Nc7 {[%emt 0:03:22]} 26. g5 {[%emt 0:01:32]} Qe7 {[%emt 0:00:09]} 27. Rh1 {[%emt 0:03:02] Hoping for Re4.} Rad8 $2 {[%emt 0:05:20]} (27... b5 28. Rc5 bxc4) 28. Re4 $18 {[%emt 0:06:34][%cal Be5e4,Be4h4,Bh4h8][%mdl 32] White is clearly winning.} Rd7 {[%emt 0:13:45]} 29. Reh4 {[%emt 0:04:41]} c5 {[%emt 0:06:56]} 30. hxg6 {[%emt 0:02:27]} fxg6 {[%emt 0:02:40] [#]} 31. Bxg6 $1 {[%emt 0:01:43][%mdl 512]} cxd4 {[%emt 0:00:53] [#]} 32. Qe5 $1 {[%emt 0:03:57]} hxg6 {[%emt 0:03:08]} (32... Rf5 33. Bxf5) 33. Rh8+ {[%emt 0:00:17]} Kf7 {[%emt 0:00:08]} 34. R1h7+ {[%emt 0:02:55]} Ke8 {[%emt 0:00:05]} 35. Rxe7+ {[%emt 0:00:16]} Rxe7 {[%emt 0:00:42]} 36. Rxf8+ {[%emt 0:00:06]} Kxf8 {[%emt 0:00:06][%mdl 4096] Endgame KQ-KRN} 37. Qh8+ {[%emt 0:00:04]} Kf7 {[%emt 0:00:11]} 38. Qf6+ {[%emt 0:00:06]} Ke8 {[%emt 0:00:06]} 39. Qxg6+ {[%emt 0:00:05]} Kd7 {[%emt 0:00:12]} 40. Qe4 {[%emt 0:00:06]} e5 {[%emt 0:00:37]} 41. f3 {[%emt 0:16:44][%cal Bf2f3,Bf3f4][%mdl 32]} b6 {[%emt 0:17:11]} 42. g6 {[%emt 0:00:36]} Kd6 {[%emt 0:01:25]} 43. f4 {[%emt 0:03:08] Weighted Error Value: White=0.08 (flawless) /Black=0.34} 1-0